fUSD/lending_fUSD_20240923
["ID","MTS","AMOUNT","RATE_DAILY","PERIOD"]
[338945541,1727087455210,-500.0,0.00012991,2]
[338945542,1727087455219,-869.79,0.00012991,2]
[338945543,1727087455228,-500.0,0.00012991,2]
[338945544,1727087455238,-625.64,0.00012991,2]
[338945545,1727087455247,-500.0,0.00012991,2]
[338945546,1727087455256,-500.0,0.00012991,2]
[338945547,1727087455265,-500.0,0.00012991,2]
[338945548,1727087455274,-500.0,0.00012991,2]
[338945549,1727087455283,-500.0,0.00012991,2]
[338945550,1727087455292,-165.98519646,0.00012991,2]
[338945551,1727087455303,-500.0,0.00012991,2]
[338945552,1727087455312,-568.93,0.00012991,2]
[338945553,1727087455321,-1115.15,0.00012991,2]
[338945554,1727087455330,-1155.71,0.00012991,2]
[338945555,1727087455339,-1700.26,0.00012991,2]
[338945556,1727087455348,-1700.26,0.00012991,2]
[338945557,1727087455357,-1019.25,0.00012991,2]
[338945558,1727087455367,-661.54,0.00012991,2]
[338945559,1727087455376,-863.06,0.00012991,2]
[338945560,1727087455385,-500.0,0.00012991,2]
[338945561,1727087455394,-500.0,0.00012991,2]
[338945562,1727087455403,-563.41522612,0.00012991,2]
[338945563,1727087455412,-969.33,0.00012991,2]
[338945564,1727087455422,-500.0,0.00012991,2]
[338945565,1727087455431,-500.0,0.00012991,2]
[338945566,1727087455440,-500.0,0.00012991,2]
[338945567,1727087455449,-500.0,0.00012991,2]
[338945568,1727087455459,-500.0,0.00012991,2]
[338945569,1727087455473,-500.0,0.00012991,2]
[338945570,1727087455482,-597.28,0.00012991,2]
[338945571,1727087455493,-500.0,0.00012991,2]
[338945572,1727087455502,-711.28,0.00012991,2]
[338945573,1727087455512,-500.0,0.00012991,2]
[338945574,1727087455524,-500.0,0.00012991,2]
[338945575,1727087455532,-765.94,0.00012991,2]
[338945576,1727087455544,-765.94,0.00012991,2]
[338945577,1727087455555,-500.0,0.00012991,2]
[338945578,1727087455564,-500.0,0.00012991,2]
[338945579,1727087455573,-674.97,0.00012991,2]
[338945580,1727087455583,-655.94,0.00012991,2]
[338945581,1727087455594,-500.0,0.00012991,2]
[338945582,1727087455603,-1360.77,0.00012991,2]
[338945583,1727087455613,-500.0,0.00012991,2]
[338945584,1727087455621,-500.0,0.00012991,2]
[338945585,1727087455631,-500.0,0.00012991,2]
[338945586,1727087455640,-500.0,0.00012991,2]
[338945587,1727087455649,-338.26554148,0.00012991,2]
[338945588,1727087455659,-500.0,0.00012991,2]
[338945589,1727087455669,-500.0,0.00012991,2]
[338945590,1727087455679,-784.73,0.00012991,2]
[338945591,1727087455688,-784.73,0.00012991,2]
[338945592,1727087455699,-1417.22,0.00012991,2]
[338945593,1727087455710,-500.0,0.00012991,2]
[338945594,1727087455720,-500.0,0.00012991,2]
[338945595,1727087455730,-500.0,0.00012991,2]
[338945596,1727087455739,-500.0,0.00012991,2]
[338945597,1727087455749,-500.0,0.00012991,2]
[338945598,1727087455758,-828.7,0.00012991,2]
[338945599,1727087455767,-500.0,0.00012991,2]
[338945600,1727087455777,-624.39,0.00012991,2]
[338945601,1727087455787,-828.7,0.00012991,2]
[338945602,1727087455798,-500.0,0.00012991,2]
[338945603,1727087455807,-2586.64,0.00012991,2]
[338945604,1727087455816,-825.85,0.00012991,2]
[338945605,1727087455825,-500.0,0.00012991,2]
[338945606,1727087455835,-925.67,0.00012991,2]
[338945607,1727087455846,-500.0,0.00012991,2]
[338945608,1727087455855,-500.0,0.00012991,2]
[338945609,1727087455864,-664.17,0.00012991,2]
[338945610,1727087455875,-500.0,0.00012991,2]
[338945611,1727087455885,-500.0,0.00012991,2]
[338945612,1727087455894,-500.0,0.00012991,2]
[338945613,1727087455905,-500.0,0.00012991,2]
[338945614,1727087455915,-500.0,0.00012991,2]
[338945615,1727087455925,-787.45,0.00012991,2]
[338945616,1727087455934,-276.90312102,0.00012991,2]
[338945617,1727087455943,-500.0,0.00012991,2]
[338945618,1727087455952,-500.0,0.00012991,2]
[338945619,1727087455961,-609.06,0.00012991,2]
[338945620,1727087455971,-893.61,0.00012991,2]
[338945621,1727087455980,-500.0,0.00012991,2]
[338945622,1727087455989,-2405.13,0.00012991,2]
[338945623,1727087455998,-2405.13,0.00012991,2]
[338945624,1727087456008,-500.0,0.00012991,2]
[338945625,1727087456017,-500.0,0.00012991,2]
[338945626,1727087456027,-500.0,0.00012991,2]
[338945627,1727087456036,-558.72,0.00012991,2]
[338945628,1727087456046,-500.0,0.00012991,2]
[338945629,1727087456056,-516.07202747,0.00012991,2]
[338945630,1727087456066,-539.25048754,0.00012991,2]
[338945631,1727087456075,-500.0,0.00012991,2]
[338945632,1727087456084,-500.0,0.00012991,2]
[338945633,1727087456093,-500.0,0.00012991,2]
[338945634,1727087456102,-500.0,0.00012991,2]
[338945635,1727087456112,-500.0,0.00012991,2]
[338945636,1727087456121,-507.43,0.00012991,2]
[338945637,1727087456130,-506.23,0.00012991,2]
[338945638,1727087456139,-500.0,0.00012991,2]
[338945639,1727087456148,-500.0,0.00012991,2]
[338945640,1727087456158,-500.0,0.00012991,2]
[338945641,1727087456167,-500.0,0.00012991,2]
[338945642,1727087456176,-500.0,0.00012991,2]
[338945643,1727087456186,-500.0,0.00012991,2]
[338945644,1727087456195,-941.75,0.00012991,2]
[338945645,1727087456205,-575.95,0.00012991,2]
[338945646,1727087456214,-500.0,0.00012991,2]
[338945647,1727087456223,-500.0,0.00012991,2]
[338945648,1727087456232,-500.0,0.00012991,2]
[338945649,1727087456242,-500.0,0.00012991,2]
[338945650,1727087456252,-181.09916981,0.00012991,2]
[338945651,1727087456261,-500.0,0.00012991,2]
[338945652,1727087456271,-500.0,0.00012991,2]
[338945653,1727087456280,-500.0,0.00012991,2]
[338945654,1727087456289,-500.0,0.00012991,2]
[338945655,1727087456299,-609.47,0.00012991,2]
[338945656,1727087456309,-500.0,0.00012991,2]
[338945657,1727087456319,-1548.27,0.00012991,2]
[338945658,1727087456328,-500.0,0.00012991,2]
[338945659,1727087456337,-500.0,0.00012991,2]
[338945660,1727087456346,-500.0,0.00012991,2]
[338945661,1727087456356,-500.0,0.00012991,2]
[338945662,1727087456365,-500.0,0.00012991,2]
[338945663,1727087456375,-500.0,0.00012991,2]
[338945664,1727087456384,-500.0,0.00012991,2]
[338945665,1727087456394,-500.0,0.00012991,2]
[338945666,1727087456403,-500.0,0.00012991,2]
[338945667,1727087456413,-1303.84,0.00012991,2]
[338945668,1727087456423,-500.0,0.00012991,2]
[338945669,1727087456433,-509.75,0.00012991,2]
[338945670,1727087456442,-500.0,0.00012991,2]
[338945671,1727087456452,-1493.52,0.00012991,2]
[338945672,1727087456461,-787.37,0.00012991,2]
[338945673,1727087456475,-899.7,0.00012991,2]
[338945674,1727087456484,-500.0,0.00012991,2]
[338945675,1727087456494,-500.0,0.00012991,2]
[338945676,1727087456504,-591.11,0.00012991,2]
[338945677,1727087456514,-500.0,0.00012991,2]
[338945678,1727087456524,-1628.55,0.00012991,2]
[338945679,1727087456535,-500.0,0.00012991,2]
[338945680,1727087456545,-500.0,0.00012991,2]
[338945681,1727087456562,-500.0,0.00012991,2]
[338945682,1727087456572,-500.0,0.00012991,2]
[338945683,1727087456582,-802.16,0.00012991,2]
[338945684,1727087456591,-500.0,0.00012991,2]
[338945685,1727087456600,-1411.84,0.00012991,2]
[338945686,1727087456609,-651.44,0.00012991,2]
[338945687,1727087456724,-1095.89,0.00012991,2]
[338945688,1727087456736,-921.82,0.00012991,2]
[338945689,1727087456748,-500.0,0.00012991,2]
[338945690,1727087456758,-500.0,0.00012991,2]
[338945691,1727087456767,-500.0,0.00012991,2]
[338945692,1727087456777,-500.0,0.00012991,2]
[338945693,1727087456787,-500.0,0.00012991,2]
[338945694,1727087456797,-945.44,0.00012991,2]
[338945695,1727087456810,-500.0,0.00012991,2]
[338945696,1727087456820,-641.20053333,0.00012991,2]
[338945697,1727087456830,-500.0,0.00012991,2]
[338945698,1727087456840,-815.09,0.00012991,2]
[338945699,1727087456849,-500.0,0.00012991,2]
[338945700,1727087456859,-536.26,0.00012991,2]
[338945701,1727087456868,-503.32,0.00012991,2]
[338945702,1727087456877,-2333.98,0.00012991,2]
[338945703,1727087456887,-500.0,0.00012991,2]
[338945704,1727087456897,-500.0,0.00012991,2]
[338945705,1727087456906,-500.0,0.00012991,2]
[338945706,1727087456916,-500.0,0.00012991,2]
[338945707,1727087456926,-500.0,0.00012991,2]
[338945708,1727087456936,-1260.14,0.00012991,2]
[338945709,1727087456946,-500.0,0.00012991,2]
[338945710,1727087456956,-500.0,0.00012991,2]
[338945711,1727087456965,-2521.08,0.00012991,2]
[338945712,1727087456975,-3548.78,0.00012991,2]
[338945713,1727087456985,-797.56,0.00012991,2]
[338945714,1727087456994,-625.68,0.00012991,2]
[338945715,1727087457004,-583.13539157,0.00012991,2]
[338945716,1727087457014,-1166.0,0.00012991,2]
[338945717,1727087457024,-1329.85,0.00012991,2]
[338945718,1727087457034,-836.62,0.00012991,2]
[338945719,1727087457043,-500.0,0.00012991,2]
[338945720,1727087457056,-500.0,0.00012991,2]
[338945721,1727087457066,-1384.49,0.00012991,2]
[338945722,1727087457075,-1702.77,0.00012991,2]
[338945723,1727087457085,-500.0,0.00012991,2]
[338945724,1727087457094,-595.72,0.00012991,2]
[338945725,1727087457104,-289.3074722,0.00012991,2]
[338945726,1727087457113,-1936.65,0.00012991,2]
[338945727,1727087457123,-1018.28,0.00012991,2]
[338945728,1727087457132,-1454.12,0.00012991,2]
[338945729,1727087457142,-500.0,0.00012991,2]
[338945730,1727087457152,-689.32,0.00012991,2]
[338945731,1727087457164,-500.0,0.00012991,2]
[338945732,1727087457173,-500.0,0.00012991,2]
[338945733,1727087457185,-500.0,0.00012991,2]
[338945734,1727087457194,-500.0,0.00012991,2]
[338945735,1727087457204,-634.74,0.00012991,2]
[338945736,1727087457216,-500.0,0.00012991,2]
[338945737,1727087457226,-500.0,0.00012991,2]
[338945738,1727087457235,-1298.75,0.00012991,2]
[338945739,1727087457246,-500.0,0.00012991,2]
[338945740,1727087457256,-500.0,0.00012991,2]
[338945741,1727087457265,-541.34,0.00012991,2]
[338945742,1727087457276,-500.0,0.00012991,2]
[338945743,1727087457286,-1579.55,0.00012991,2]
[338945744,1727087457296,-500.0,0.00012991,2]
[338945745,1727087457317,-500.0,0.00012991,2]
[338945746,1727087457326,-500.0,0.00012991,2]
[338945747,1727087457335,-500.0,0.00012991,2]
[338945748,1727087457344,-500.0,0.00012991,2]
[338945749,1727087457353,-1763.09,0.00012991,2]
[338945750,1727087457363,-500.0,0.00012991,2]
[338945751,1727087457372,-574.55,0.00012991,2]
[338945752,1727087457381,-500.0,0.00012991,2]
[338945753,1727087457390,-598.09668078,0.00012991,2]
[338945754,1727087457399,-500.0,0.00012991,2]
[338945755,1727087457409,-564.2,0.00012991,2]
[338945756,1727087457418,-500.0,0.00012991,2]
[338945757,1727087457428,-500.0,0.00012991,2]
[338945758,1727087457437,-500.0,0.00012991,2]
[338945759,1727087457446,-500.0,0.00012991,2]
[338945760,1727087457455,-500.0,0.00012991,2]
[338945761,1727087457466,-500.0,0.00012991,2]
[338945762,1727087457477,-500.0,0.00012991,2]
[338945763,1727087457487,-500.0,0.00012991,2]
[338945764,1727087457496,-500.0,0.00012991,2]
[338945765,1727087457506,-1917.05,0.00012991,2]
[338945766,1727087457516,-500.0,0.00012991,2]
[338945767,1727087457526,-500.0,0.00012991,2]
[338945768,1727087457537,-500.42783624,0.00012991,2]
[338945769,1727087457548,-500.0,0.00012991,2]
[338945770,1727087457561,-500.0,0.00012991,2]
[338945771,1727087457570,-500.0,0.00012991,2]
[338945772,1727087457580,-501.41028067,0.00012991,2]
[338945773,1727087457589,-500.0,0.00012991,2]
[338945774,1727087457599,-500.0,0.00012991,2]
[338945775,1727087457608,-500.0,0.00012991,2]
[338945776,1727087457617,-500.0,0.00012991,2]
[338945777,1727087457627,-500.0,0.00012991,2]
[338945778,1727087457637,-500.0,0.00012991,2]
[338945779,1727087457647,-500.0,0.00012991,2]
[338945780,1727087457657,-500.0,0.00012991,2]
[338945781,1727087457667,-501.28,0.00012991,2]
[338945782,1727087457676,-500.0,0.00012991,2]
[338945783,1727087457686,-500.0,0.00012991,2]
[338945784,1727087457696,-681.86,0.00012991,2]
[338945785,1727087457706,-500.0,0.00012991,2]
[338945786,1727087457718,-500.0,0.00012991,2]
[338945787,1727087457727,-150.0,0.00012991,2]
[338945788,1727087457738,-554.78,0.00012991,2]
[338945789,1727087457752,-500.0,0.00012991,2]
[338945790,1727087457762,-500.0,0.00012991,2]
[338945791,1727087457772,-762.19,0.00012991,2]
[338945792,1727087457782,-500.0,0.00012991,2]
[338945793,1727087457791,-551.91068651,0.00012991,2]
[338945794,1727087457801,-500.0,0.00012991,2]
[338945795,1727087457810,-761.09,0.00012991,2]
[338945796,1727087457820,-500.0,0.00012991,2]
[338945797,1727087457829,-500.0,0.00012991,2]
[338945798,1727087457839,-1427.06,0.00012991,2]
[338945799,1727087457849,-500.0,0.00012991,2]
[338945800,1727087457858,-500.0,0.00012991,2]
[338945801,1727087457868,-1071.53,0.00012991,2]
[338945802,1727087457877,-549.53,0.00012991,2]
[338945803,1727087457887,-668.44,0.00012991,2]
[338945804,1727087457897,-500.0,0.00012991,2]
[338945805,1727087457906,-500.0,0.00012991,2]
[338945806,1727087457915,-593.91,0.00012991,2]
[338945807,1727087457925,-500.0,0.00012991,2]
[338945808,1727087457935,-500.0,0.00012991,2]
[338945809,1727087457944,-500.0,0.00012991,2]
[338945810,1727087457954,-523.37,0.00012991,2]
[338945811,1727087457964,-942.54,0.00012991,2]
[338945812,1727087457975,-500.0,0.00012991,2]
[338945813,1727087457985,-261.59,0.00012991,2]
[338945814,1727087457995,-500.0,0.00012991,2]
[338945815,1727087458007,-1468.62,0.00012991,2]
[338945816,1727087458018,-2195.37,0.00012991,2]
[338945817,1727087458027,-1886.13,0.00012991,2]
[338945818,1727087458038,-979.7,0.00012991,2]
[338945819,1727087458050,-500.0,0.00012991,2]
[338945820,1727087458060,-500.0,0.00012991,2]
[338945821,1727087458070,-500.0,0.00012991,2]
[338945822,1727087458080,-1525.08,0.00012991,2]
[338945823,1727087458090,-520.97,0.00012991,2]
[338945824,1727087458101,-500.0,0.00012992,2]
[338945825,1727087458112,-500.0,0.00012992,2]
[338945826,1727087458124,-500.0,0.00012992,2]
[338945827,1727087458134,-500.0,0.00012992,2]
[338945828,1727087458144,-501.28626173,0.00012992,2]
[338945829,1727087458153,-400.79957274,0.00012992,2]
[338945830,1727087458164,-500.0,0.00012992,2]
[338945831,1727087458174,-500.0,0.00012992,2]
[338945832,1727087458184,-500.72279991,0.00012992,2]
[338945833,1727087458195,-490.6830714,0.00012992,2]
[338945834,1727087458206,-500.0,0.00012992,2]
[338945835,1727087458218,-500.0,0.00012992,2]
[338945836,1727087458229,-500.0,0.00012992,2]
[338945837,1727087458239,-500.73679776,0.00012992,2]
[338945838,1727087458250,-500.0,0.00012992,2]
[338945839,1727087458260,-151.0,0.00012992,2]
[338945840,1727087458270,-151.0,0.00012992,2]
[338945841,1727087458280,-500.0,0.00012992,2]
[338945842,1727087458289,-500.0,0.00012992,2]
[338945843,1727087458299,-500.0,0.00012992,2]
[338945844,1727087458312,-500.0,0.00012992,2]
[338945845,1727087458321,-500.0,0.00012992,2]
[338945846,1727087458331,-751.4,0.00012992,2]
[338945847,1727087458341,-500.0,0.00012992,2]
[338945848,1727087458350,-500.0,0.00012992,2]
[338945849,1727087458359,-500.0,0.00012992,2]
[338945850,1727087458368,-300.0,0.00012992,2]
[338945851,1727087458377,-500.0,0.00012992,2]
[338945852,1727087458387,-422.61407173,0.00012992,2]
[338945853,1727087458396,-573.67325985,0.00012992,2]
[338945854,1727087458406,-506.22,0.00012992,2]
[338945855,1727087458416,-500.0,0.00012992,2]
[338945856,1727087458427,-500.0,0.00012992,2]
[338945857,1727087458437,-500.0,0.00012992,2]
[338945858,1727087458446,-609.26,0.00012992,2]
[338945859,1727087458456,-500.0,0.00012992,2]
[338945860,1727087458469,-500.0,0.00012992,2]
[338945861,1727087458480,-500.0,0.00012992,2]
[338945862,1727087458490,-500.0,0.00012992,2]
[338945863,1727087458500,-500.0,0.00012992,2]
[338945864,1727087458511,-500.0,0.00012992,2]
[338945865,1727087458522,-500.0,0.00012992,2]
[338945866,1727087458532,-500.0,0.00012992,2]
[338945867,1727087458542,-500.0,0.00012992,2]
[338945868,1727087458553,-500.0,0.00012992,2]
[338945869,1727087458562,-500.0,0.00012992,2]
[338945870,1727087458571,-500.0,0.00012992,2]
[338945871,1727087458580,-500.0,0.00012992,2]
[338945872,1727087458590,-500.0,0.00012992,2]
[338945873,1727087458599,-500.0,0.00012992,2]
[338945874,1727087458608,-500.0,0.00012992,2]
[338945875,1727087458618,-500.0,0.00012992,2]
[338945876,1727087458627,-500.0,0.00012992,2]
[338945877,1727087458637,-500.0,0.00012992,2]
[338945878,1727087458647,-500.0,0.00012992,2]
[338945879,1727087458657,-500.0,0.00012992,2]
[338945880,1727087458667,-1419.93,0.00012992,2]
[338945881,1727087458677,-1419.93,0.00012992,2]
[338945882,1727087458688,-716.08,0.00012992,2]
[338945883,1727087458699,-386.00828179,0.00012992,2]
[338945884,1727087458708,-1146.94,0.00012992,2]
[338945885,1727087458717,-1146.94,0.00012992,2]
[338945886,1727087458727,-500.0,0.00012992,2]
[338945887,1727087458736,-1415.01,0.00012992,2]
[338945888,1727087458745,-513.65,0.00012992,2]
[338945889,1727087458755,-500.0,0.00012992,2]
[338945890,1727087458764,-608.89,0.00012992,2]
[338945891,1727087458773,-500.0,0.00012992,2]
[338945892,1727087458783,-500.0,0.00012992,2]
[338945893,1727087458792,-612.32,0.00012992,2]
[338945894,1727087458802,-500.0,0.00012992,2]
[338945895,1727087458812,-918.43,0.00012992,2]
[338945896,1727087458821,-500.0,0.00012992,2]
[338945897,1727087458830,-500.0,0.00012992,2]
[338945898,1727087458839,-500.0,0.00012992,2]
[338945899,1727087458849,-500.0,0.00012992,2]
[338945900,1727087458858,-500.0,0.00012992,2]
[338945901,1727087458867,-643.05,0.00012992,2]
[338945902,1727087458876,-564.64,0.00012992,2]
[338945903,1727087458886,-564.64,0.00012992,2]
[338945904,1727087458896,-1340.45,0.00012992,2]
[338945905,1727087459180,-500.0,0.00012992,2]
[338945906,1727087459191,-341.1,0.00012992,2]
[338945907,1727087459201,-500.0,0.00012992,2]
[338945908,1727087459211,-500.0,0.00012992,2]
[338945909,1727087459221,-573.81,0.00012992,2]
[338945910,1727087459231,-500.0,0.00012992,2]
[338945911,1727087459242,-500.0,0.00012992,2]
[338945912,1727087459251,-500.0,0.00012992,2]
[338945913,1727087459261,-500.0,0.00012992,2]
[338945914,1727087459271,-293.94,0.00012992,2]
[338945915,1727087459281,-598.65,0.00012992,2]
[338945916,1727087459291,-500.0,0.00012992,2]
[338945917,1727087459301,-500.0,0.00012992,2]
[338945918,1727087459311,-500.0,0.00012992,2]
[338945919,1727087459321,-500.0,0.00012992,2]
[338945920,1727087459331,-500.0,0.00012992,2]
[338945921,1727087459341,-500.0,0.00012992,2]
[338945922,1727087459350,-1156.77,0.00012992,2]
[338945923,1727087459360,-500.0,0.00012992,2]
[338945924,1727087459371,-582.35,0.00012992,2]
[338945925,1727087459381,-582.35,0.00012992,2]
[338945926,1727087459391,-500.0,0.00012992,2]
[338945927,1727087459400,-179.05504159,0.00012992,2]
[338945928,1727087459411,-500.0,0.00012992,2]
[338945929,1727087459421,-1486.91,0.00012992,2]
[338945930,1727087459431,-500.0,0.00012992,2]
[338945931,1727087459441,-554.07,0.00012992,2]
[338945932,1727087459451,-554.07,0.00012992,2]
[338945933,1727087459461,-500.0,0.00012992,2]
[338945934,1727087459474,-500.0,0.00012992,2]
[338945935,1727087459484,-500.0,0.00012992,2]
[338945936,1727087459493,-500.0,0.00012992,2]
[338945937,1727087459503,-810.08,0.00012992,2]
[338945938,1727087459514,-500.0,0.00012992,2]
[338945939,1727087459525,-500.0,0.00012992,2]
[338945940,1727087459535,-500.0,0.00012992,2]
[338945941,1727087459547,-500.0,0.00012992,2]
[338945942,1727087459558,-777.1,0.00012992,2]
[338945943,1727087459568,-777.1,0.00012992,2]
[338945944,1727087459578,-500.0,0.00012992,2]
[338945945,1727087459587,-869.79,0.00012992,2]
[338945946,1727087459597,-625.64,0.00012992,2]
[338945947,1727087459606,-500.0,0.00012992,2]
[338945948,1727087459616,-500.0,0.00012992,2]
[338945949,1727087459625,-500.0,0.00012992,2]
[338945950,1727087459635,-500.0,0.00012992,2]
[338945951,1727087459645,-500.0,0.00012992,2]
[338945952,1727087459655,-1115.15,0.00012992,2]
[338945953,1727087459665,-1700.26,0.00012992,2]
[338945954,1727087459675,-1700.26,0.00012992,2]
[338945955,1727087459685,-1019.25,0.00012992,2]
[338945956,1727087459694,-661.54,0.00012992,2]
[338945957,1727087459704,-969.33,0.00012992,2]
[338945958,1727087459714,-493.9328698,0.00012992,2]
[338945959,1727087459723,-500.0,0.00012992,2]
[338945960,1727087459733,-500.0,0.00012992,2]
[338945961,1727087459742,-500.0,0.00012992,2]
[338945962,1727087459752,-500.0,0.00012992,2]
[338945963,1727087459762,-765.94,0.00012992,2]
[338945964,1727087459771,-765.94,0.00012992,2]
[338945965,1727087459781,-674.97,0.00012992,2]
[338945966,1727087459790,-655.94,0.00012992,2]
[338945967,1727087459800,-500.0,0.00012992,2]
[338945968,1727087459811,-500.0,0.00012992,2]
[338945969,1727087459821,-500.0,0.00012992,2]
[338945970,1727087459830,-500.0,0.00012992,2]
[338945971,1727087459840,-784.73,0.00012992,2]
[338945972,1727087459849,-784.73,0.00012992,2]
[338945973,1727087459859,-1417.22,0.00012992,2]
[338945974,1727087459868,-500.0,0.00012992,2]
[338945975,1727087459878,-828.7,0.00012992,2]
[338945976,1727087459888,-828.7,0.00012992,2]
[338945977,1727087459898,-2586.64,0.00012992,2]
[338945978,1727087459907,-925.67,0.00012992,2]
[338945979,1727087459917,-664.17,0.00012992,2]
[338945980,1727087459926,-500.0,0.00012992,2]
[338945981,1727087459936,-500.0,0.00012992,2]
[338945982,1727087459945,-500.0,0.00012992,2]
[338945983,1727087459955,-500.0,0.00012992,2]
[338945984,1727087459965,-609.06,0.00012992,2]
[338945985,1727087459974,-2405.13,0.00012992,2]
[338945986,1727087459984,-504.16417999,0.00012992,2]
[338945987,1727087459994,-2405.13,0.00012992,2]
[338945988,1727087460004,-500.0,0.00012992,2]
[338945989,1727087460014,-558.72,0.00012992,2]
[338945990,1727087460023,-500.0,0.00012992,2]
[338945991,1727087460033,-500.0,0.00012992,2]
[338945992,1727087460042,-500.0,0.00012992,2]
[338945993,1727087460053,-507.43,0.00012992,2]
[338945994,1727087460063,-500.0,0.00012992,2]
[338945995,1727087460074,-500.0,0.00012992,2]
[338945996,1727087460084,-500.0,0.00012992,2]
[338945997,1727087460094,-941.75,0.00012992,2]
[338945998,1727087460103,-575.95,0.00012992,2]
[338945999,1727087460113,-500.0,0.00012992,2]
[338946000,1727087460122,-609.47,0.00012992,2]
[338946001,1727087460132,-500.0,0.00012992,2]
[338946002,1727087460142,-500.0,0.00012992,2]
[338946003,1727087460151,-500.0,0.00012992,2]
[338946004,1727087460161,-500.0,0.00012992,2]
[338946005,1727087460170,-509.75,0.00012992,2]
[338946006,1727087460180,-500.0,0.00012992,2]
[338946007,1727087460190,-1493.52,0.00012992,2]
[338946008,1727087460200,-1493.52,0.00012992,2]
[338946009,1727087460210,-500.0,0.00012992,2]
[338946010,1727087460219,-186.82436326,0.00012992,2]
[338946011,1727087460229,-319.89,0.00012992,2]
[338946012,1727087460239,-503.40798961,0.00012992,2]
[338946013,1727087460249,-1764.9,0.00012992,2]
[338946014,1727087460258,-1764.9,0.00012992,2]
[338946015,1727087460268,-500.0,0.00012992,2]
[338946016,1727087460277,-1411.84,0.00012992,2]
[338946017,1727087460287,-651.44,0.00012992,2]
[338946018,1727087460296,-1095.89,0.00012992,2]
[338946019,1727087460308,-500.0,0.00012992,2]
[338946020,1727087460318,-500.0,0.00012992,2]
[338946021,1727087460327,-945.44,0.00012992,2]
[338946022,1727087460336,-3560.34,0.00012992,2]
[338946023,1727087460346,-3560.34,0.00012992,2]
[338946024,1727087460355,-500.0,0.00012992,2]
[338946025,1727087460365,-536.26,0.00012992,2]
[338946026,1727087460374,-2333.98,0.00012992,2]
[338946027,1727087460383,-205.69652738,0.00012992,2]
[338946028,1727087460393,-169.62206513,0.00012992,2]
[338946029,1727087460403,-1260.14,0.00012992,2]
[338946030,1727087460412,-500.0,0.00012992,2]
[338946031,1727087460423,-2521.08,0.00012992,2]
[338946032,1727087460433,-3548.78,0.00012992,2]
[338946033,1727087460442,-797.56,0.00012992,2]
[338946034,1727087460454,-3548.78,0.00012992,2]
[338946035,1727087460463,-797.56,0.00012992,2]
[338946036,1727087460479,-625.68,0.00012992,2]
[338946037,1727087460489,-625.68,0.00012992,2]
[338946038,1727087460498,-1166.0,0.00012992,2]
[338946039,1727087460507,-836.62,0.00012992,2]
[338946040,1727087460520,-507.48,0.00012992,2]